Department family,Entity,Date,Expense Type,Expense area,Supplier,Transaction number,AP Amount (�),Purchase invoice number
Department of Health,NHS North East Lincolnshire CCG,31/12/2019,Hcare Srv Rec Fdtn Trust-Contract Baseline,ACUTE COMMISSIONING,SHEFFIELD CHILDRENS NHS FOUNDATION TRUST,30034130,"40,207.00 ",2100205519
Department of Health,NHS North East Lincolnshire CCG,31/12/2019,Hcare Srv Rec Fdtn Trust-Contract Baseline,ACUTE COMMISSIONING,SHEFFIELD TEACHING HOSPITALS NHS FOUNDATION TRUST,30034173,"78,365.00 ",4000584248
Department of Health,NHS North East Lincolnshire CCG,31/12/2019,Hcare Srv Rec NHS Trust-Contract Baseline,ACUTE COMMISSIONING,LEEDS TEACHING HOSPITALS NHS TRUST,30075416,"46,386.00 ",1410144065
Department of Health,NHS North East Lincolnshire CCG,31/12/2019,Hcare Srv Rec NHS Trust-Contract Baseline,ACUTE COMMISSIONING,UNITED LINCOLNSHIRE HOSPITALS NHS TRUST,30075419,"32,647.09 ",0000602154
Department of Health,NHS North East Lincolnshire CCG,31/12/2019,Hcare Srv Rec NHS Trust-Contract Baseline,ACUTE COMMISSIONING,HULL UNIVERSITY TEACHING HOSPITAL NHS TRUST,30075429,"730,471.00 ",H0028178
Department of Health,NHS North East Lincolnshire CCG,31/12/2019,Computer Network Costs,PRIMARY CARE IT,VIRGIN MEDIA BUSINESS LTD,30075444,"27,550.88 ",939660042
Department of Health,NHS North East Lincolnshire CCG,31/12/2019,Clinical&Medical-Independent Sector,COMMUNITY SERVICES,YARBOROUGH CLEE CARE LTD,30088953,"108,690.00 ",1930
Department of Health,NHS North East Lincolnshire CCG,31/12/2019,Hcare Srv Rec Fdtn Trust-Contract Baseline,ACUTE COMMISSIONING,NORTHERN LINCOLNSHIRE AND GOOLE HOSPITALS NHS FOUNDATION TRUST,30091302,"9,239,453.00 ",2400025474
Department of Health,NHS North East Lincolnshire CCG,31/12/2019,C&M-PMS Contract Value,PRC DELEGATED CO-COMMISSIONING,BEACON MEDICAL,30123125,"102,533.57 ",KHU000037310
Department of Health,NHS North East Lincolnshire CCG,31/12/2019,C&M-PMS DES Extended Hours Access,PRC DELEGATED CO-COMMISSIONING,BEACON MEDICAL,30123125,"3,763.48 ",KHU000037310
Department of Health,NHS North East Lincolnshire CCG,31/12/2019,C&M-PMS List Size Adjustment,PRC DELEGATED CO-COMMISSIONING,BEACON MEDICAL,30123125,620.94 ,KHU000037310
Department of Health,NHS North East Lincolnshire CCG,31/12/2019,C&M-PMS PCN DES Clinical Director,PRC DELEGATED CO-COMMISSIONING,BEACON MEDICAL,30123125,"1,778.78 ",KHU000037310
Department of Health,NHS North East Lincolnshire CCG,31/12/2019,C&M-PMS PCN DES PCN support,LOCAL ENHANCED SERVICES,BEACON MEDICAL,30123125,"3,893.25 ",KHU000037310
Department of Health,NHS North East Lincolnshire CCG,31/12/2019,C&M-PMS PCN DES Participation,PRC DELEGATED CO-COMMISSIONING,BEACON MEDICAL,30123125,"1,938.81 ",KHU000037310
Department of Health,NHS North East Lincolnshire CCG,31/12/2019,C&M-PMS PCO Other,PRC DELEGATED CO-COMMISSIONING,BEACON MEDICAL,30123125,746.30 ,KHU000037310
Department of Health,NHS North East Lincolnshire CCG,31/12/2019,C&M-PMS PCO Seniority,PRC DELEGATED CO-COMMISSIONING,BEACON MEDICAL,30123125,649.78 ,KHU000037310
Department of Health,NHS North East Lincolnshire CCG,31/12/2019,C&M-PMS Prem Actual Rent,PRC DELEGATED CO-COMMISSIONING,BEACON MEDICAL,30123125,"43,995.00 ",KHU000037310
Department of Health,NHS North East Lincolnshire CCG,31/12/2019,C&M-PMS Prem Rates,PRC DELEGATED CO-COMMISSIONING,BEACON MEDICAL,30123125,"2,480.00 ",KHU000037310
Department of Health,NHS North East Lincolnshire CCG,31/12/2019,C&M-PMS QOF Aspiration,PRC DELEGATED CO-COMMISSIONING,BEACON MEDICAL,30123125,"10,895.10 ",KHU000037310
Department of Health,NHS North East Lincolnshire CCG,31/12/2019,C&M-PMS Contract Value,PRC DELEGATED CO-COMMISSIONING,DR B BISWAS,30123127,"21,569.60 ",KHU000037312
Department of Health,NHS North East Lincolnshire CCG,31/12/2019,C&M-PMS List Size Adjustment,PRC DELEGATED CO-COMMISSIONING,DR B BISWAS,30123127,"1,250.66 ",KHU000037312
Department of Health,NHS North East Lincolnshire CCG,31/12/2019,C&M-PMS PCN DES Participation,PRC DELEGATED CO-COMMISSIONING,DR B BISWAS,30123127,407.86 ,KHU000037312
Department of Health,NHS North East Lincolnshire CCG,31/12/2019,C&M-PMS PCO Seniority,PRC DELEGATED CO-COMMISSIONING,DR B BISWAS,30123127,405.96 ,KHU000037312
Department of Health,NHS North East Lincolnshire CCG,31/12/2019,C&M-PMS Prem Notional Rent,PRC DELEGATED CO-COMMISSIONING,DR B BISWAS,30123127,"1,729.17 ",KHU000037312
Department of Health,NHS North East Lincolnshire CCG,31/12/2019,C&M-PMS Prem Rates,PRC DELEGATED CO-COMMISSIONING,DR B BISWAS,30123127,457.00 ,KHU000037312
Department of Health,NHS North East Lincolnshire CCG,31/12/2019,C&M-PMS Prem Water Rates,PRC DELEGATED CO-COMMISSIONING,DR B BISWAS,30123127,413.50 ,KHU000037312
Department of Health,NHS North East Lincolnshire CCG,31/12/2019,C&M-PMS QOF Aspiration,PRC DELEGATED CO-COMMISSIONING,DR B BISWAS,30123127,"2,306.79 ",KHU000037312
Department of Health,NHS North East Lincolnshire CCG,31/12/2019,C&M-PMS Contract Value,PRC DELEGATED CO-COMMISSIONING,DR IDS CHALMERS & MEIER,30123129,"35,821.52 ",KHU000037316
Department of Health,NHS North East Lincolnshire CCG,31/12/2019,C&M-PMS DES Learn Dsblty Hlth Chk,PRC DELEGATED CO-COMMISSIONING,DR IDS CHALMERS & MEIER,30123129,560.00 ,KHU000037316
Department of Health,NHS North East Lincolnshire CCG,31/12/2019,C&M-PMS List Size Adjustment,PRC DELEGATED CO-COMMISSIONING,DR IDS CHALMERS & MEIER,30123129,224.52 ,KHU000037316
Department of Health,NHS North East Lincolnshire CCG,31/12/2019,C&M-PMS PCN DES Participation,PRC DELEGATED CO-COMMISSIONING,DR IDS CHALMERS & MEIER,30123129,677.35 ,KHU000037316
Department of Health,NHS North East Lincolnshire CCG,31/12/2019,C&M-PMS Prem Actual Rent,PRC DELEGATED CO-COMMISSIONING,DR IDS CHALMERS & MEIER,30123129,"123,660.00 ",KHU000037316
Department of Health,NHS North East Lincolnshire CCG,31/12/2019,C&M-PMS QOF Aspiration,PRC DELEGATED CO-COMMISSIONING,DR IDS CHALMERS & MEIER,30123129,"3,309.91 ",KHU000037316
Department of Health,NHS North East Lincolnshire CCG,31/12/2019,C&M-PMS Voluntary Levy,PRC DELEGATED CO-COMMISSIONING,DR IDS CHALMERS & MEIER,30123129,581.17 ,KHU000037316
Department of Health,NHS North East Lincolnshire CCG,31/12/2019,C&M-PMS Contract Value,PRC DELEGATED CO-COMMISSIONING,DR GG DE & PARTNERS,30123131,"33,855.01 ",KHU000037318
Department of Health,NHS North East Lincolnshire CCG,31/12/2019,C&M-PMS PCN DES Participation,PRC DELEGATED CO-COMMISSIONING,DR GG DE & PARTNERS,30123131,640.17 ,KHU000037318
Department of Health,NHS North East Lincolnshire CCG,31/12/2019,C&M-PMS PCO Seniority,PRC DELEGATED CO-COMMISSIONING,DR GG DE & PARTNERS,30123131,113.39 ,KHU000037318
Department of Health,NHS North East Lincolnshire CCG,31/12/2019,C&M-PMS Prem Actual Rent,PRC DELEGATED CO-COMMISSIONING,DR GG DE & PARTNERS,30123131,"37,173.65 ",KHU000037318
Department of Health,NHS North East Lincolnshire CCG,31/12/2019,C&M-PMS Prem Rates,PRC DELEGATED CO-COMMISSIONING,DR GG DE & PARTNERS,30123131,"1,993.00 ",KHU000037318
Department of Health,NHS North East Lincolnshire CCG,31/12/2019,C&M-PMS QOF Aspiration,PRC DELEGATED CO-COMMISSIONING,DR GG DE & PARTNERS,30123131,"3,553.81 ",KHU000037318
Department of Health,NHS North East Lincolnshire CCG,31/12/2019,C&M-PMS Contract Value,PRC DELEGATED CO-COMMISSIONING,DR R MATHEWS,30123135,"33,391.99 ",KHU000037322
Department of Health,NHS North East Lincolnshire CCG,31/12/2019,C&M-PMS DES Learn Dsblty Hlth Chk,PRC DELEGATED CO-COMMISSIONING,DR R MATHEWS,30123135,280.00 ,KHU000037322
Department of Health,NHS North East Lincolnshire CCG,31/12/2019,C&M-PMS List Size Adjustment,PRC DELEGATED CO-COMMISSIONING,DR R MATHEWS,30123135,176.71 ,KHU000037322
Department of Health,NHS North East Lincolnshire CCG,31/12/2019,C&M-PMS PCN DES Participation,PRC DELEGATED CO-COMMISSIONING,DR R MATHEWS,30123135,631.41 ,KHU000037322
Department of Health,NHS North East Lincolnshire CCG,31/12/2019,C&M-PMS PCO Other,PRC DELEGATED CO-COMMISSIONING,DR R MATHEWS,30123135,297.90 ,KHU000037322
Department of Health,NHS North East Lincolnshire CCG,31/12/2019,C&M-PMS PCO Seniority,PRC DELEGATED CO-COMMISSIONING,DR R MATHEWS,30123135,159.36 ,KHU000037322
Department of Health,NHS North East Lincolnshire CCG,31/12/2019,C&M-PMS Prem Actual Rent,PRC DELEGATED CO-COMMISSIONING,DR R MATHEWS,30123135,"32,473.92 ",KHU000037322
Department of Health,NHS North East Lincolnshire CCG,31/12/2019,C&M-PMS Prem Rates,PRC DELEGATED CO-COMMISSIONING,DR R MATHEWS,30123135,775.00 ,KHU000037322
Department of Health,NHS North East Lincolnshire CCG,31/12/2019,C&M-PMS QOF Aspiration,PRC DELEGATED CO-COMMISSIONING,DR R MATHEWS,30123135,"3,211.43 ",KHU000037322
Department of Health,NHS North East Lincolnshire CCG,31/12/2019,C&M-APMS Contract Value,PRC DELEGATED CO-COMMISSIONING,HUMBERVIEW SURGERY,30123137,"14,850.59 ",KHU000037324
Department of Health,NHS North East Lincolnshire CCG,31/12/2019,C&M-APMS DES Extended Hours Access,PRC DELEGATED CO-COMMISSIONING,HUMBERVIEW SURGERY,30123137,"4,763.98 ",KHU000037324
Department of Health,NHS North East Lincolnshire CCG,31/12/2019,C&M-APMS List Size Adjustment,PRC DELEGATED CO-COMMISSIONING,HUMBERVIEW SURGERY,30123137,70.30 ,KHU000037324
Department of Health,NHS North East Lincolnshire CCG,31/12/2019,C&M-APMS PCN DES Clinical Director,PRC DELEGATED CO-COMMISSIONING,HUMBERVIEW SURGERY,30123137,"2,251.66 ",KHU000037324
Department of Health,NHS North East Lincolnshire CCG,31/12/2019,C&M-APMS PCN DES PCN support,LOCAL ENHANCED SERVICES,HUMBERVIEW SURGERY,30123137,"4,928.25 ",KHU000037324
Department of Health,NHS North East Lincolnshire CCG,31/12/2019,C&M-APMS PCN DES Participation,PRC DELEGATED CO-COMMISSIONING,HUMBERVIEW SURGERY,30123137,287.38 ,KHU000037324
Department of Health,NHS North East Lincolnshire CCG,31/12/2019,C&M-APMS PCO Other,PRC DELEGATED CO-COMMISSIONING,HUMBERVIEW SURGERY,30123137,159.60 ,KHU000037324
Department of Health,NHS North East Lincolnshire CCG,31/12/2019,C&M-APMS Prem Actual Rent,PRC DELEGATED CO-COMMISSIONING,HUMBERVIEW SURGERY,30123137,"13,829.76 ",KHU000037324
Department of Health,NHS North East Lincolnshire CCG,31/12/2019,C&M-APMS Prem Rates,PRC DELEGATED CO-COMMISSIONING,HUMBERVIEW SURGERY,30123137,"1,272.50 ",KHU000037324
Department of Health,NHS North East Lincolnshire CCG,31/12/2019,C&M-PMS DES Learn Dsblty Hlth Chk,PRC DELEGATED CO-COMMISSIONING,HUMBERVIEW SURGERY,30123137,140.00 ,KHU000037324
Department of Health,NHS North East Lincolnshire CCG,31/12/2019,C&M-PMS QOF Aspiration,PRC DELEGATED CO-COMMISSIONING,HUMBERVIEW SURGERY,30123137,"1,533.65 ",KHU000037324
Department of Health,NHS North East Lincolnshire CCG,31/12/2019,C&M-PMS Contract Value,PRC DELEGATED CO-COMMISSIONING,LITTLEFIELD,30123139,"42,666.11 ",KHU000037326
Department of Health,NHS North East Lincolnshire CCG,31/12/2019,C&M-PMS PCN DES Participation,PRC DELEGATED CO-COMMISSIONING,LITTLEFIELD,30123139,806.78 ,KHU000037326
Department of Health,NHS North East Lincolnshire CCG,31/12/2019,C&M-PMS PCO Other,PRC DELEGATED CO-COMMISSIONING,LITTLEFIELD,30123139,362.30 ,KHU000037326
Department of Health,NHS North East Lincolnshire CCG,31/12/2019,C&M-PMS PCO Seniority,PRC DELEGATED CO-COMMISSIONING,LITTLEFIELD,30123139,"1,556.43 ",KHU000037326
Department of Health,NHS North East Lincolnshire CCG,31/12/2019,C&M-PMS Prem Actual Rent,PRC DELEGATED CO-COMMISSIONING,LITTLEFIELD,30123139,"37,110.00 ",KHU000037326
Department of Health,NHS North East Lincolnshire CCG,31/12/2019,C&M-PMS QOF Aspiration,PRC DELEGATED CO-COMMISSIONING,LITTLEFIELD,30123139,"3,893.73 ",KHU000037326
Department of Health,NHS North East Lincolnshire CCG,31/12/2019,C&M-PMS Contract Value,PRC DELEGATED CO-COMMISSIONING,RAJ MEDICAL CENTRE,30123141,"46,646.02 ",KHU000037328
Department of Health,NHS North East Lincolnshire CCG,31/12/2019,C&M-PMS PCN DES Participation,PRC DELEGATED CO-COMMISSIONING,RAJ MEDICAL CENTRE,30123141,882.03 ,KHU000037328
Department of Health,NHS North East Lincolnshire CCG,31/12/2019,C&M-PMS PCO Seniority,PRC DELEGATED CO-COMMISSIONING,RAJ MEDICAL CENTRE,30123141,640.59 ,KHU000037328
Department of Health,NHS North East Lincolnshire CCG,31/12/2019,C&M-PMS Prem Rates,PRC DELEGATED CO-COMMISSIONING,RAJ MEDICAL CENTRE,30123141,"2,596.00 ",KHU000037328
Department of Health,NHS North East Lincolnshire CCG,31/12/2019,C&M-PMS QOF Aspiration,PRC DELEGATED CO-COMMISSIONING,RAJ MEDICAL CENTRE,30123141,"5,035.07 ",KHU000037328
Department of Health,NHS North East Lincolnshire CCG,31/12/2019,C&M-PMS GP Statutory Levy,PRC DELEGATED CO-COMMISSIONING,ROXTON PRACTICE,30123144,"(3,373.50)",KHU000037331
Department of Health,NHS North East Lincolnshire CCG,31/12/2019,C&M-PMS List Size Adjustment,PRC DELEGATED CO-COMMISSIONING,ROXTON PRACTICE,30123144,"(3,552.44)",KHU000037331
Department of Health,NHS North East Lincolnshire CCG,31/12/2019,C&M-PMS Out of Hours Opt Outs,PRC DELEGATED CO-COMMISSIONING,ROXTON PRACTICE,30123144,"(9,957.59)",KHU000037331
Department of Health,NHS North East Lincolnshire CCG,31/12/2019,C&M-PMS Prem Actual Rent,PRC DELEGATED CO-COMMISSIONING,ROXTON PRACTICE,30123144,"(1,510.62)",KHU000037331
Department of Health,NHS North East Lincolnshire CCG,31/12/2019,C&M-PMS Voluntary Levy,PRC DELEGATED CO-COMMISSIONING,ROXTON PRACTICE,30123144,(277.55),KHU000037331
Department of Health,NHS North East Lincolnshire CCG,31/12/2019,ME - PMS TPS Added Years Adj EEs,PRC DELEGATED CO-COMMISSIONING,ROXTON PRACTICE,30123144,(380.52),KHU000037331
Department of Health,NHS North East Lincolnshire CCG,31/12/2019,ME-PMS GP Pension EEs-PMS,PRC DELEGATED CO-COMMISSIONING,ROXTON PRACTICE,30123144,"(9,146.05)",KHU000037331
Department of Health,NHS North East Lincolnshire CCG,31/12/2019,ME-PMS GP Pension ERs Adjs - PMS,PRC DELEGATED CO-COMMISSIONING,ROXTON PRACTICE,30123144,"(9,255.12)",KHU000037331
Department of Health,NHS North East Lincolnshire CCG,31/12/2019,C&M-PMS Contract Value,PRC DELEGATED CO-COMMISSIONING,ROXTON PRACTICE,30123145,"210,616.21 ",KHU000037332
Department of Health,NHS North East Lincolnshire CCG,31/12/2019,C&M-PMS DES Extended Hours Access,PRC DELEGATED CO-COMMISSIONING,ROXTON PRACTICE,30123145,"4,411.38 ",KHU000037332
Department of Health,NHS North East Lincolnshire CCG,31/12/2019,C&M-PMS DES Learn Dsblty Hlth Chk,PRC DELEGATED CO-COMMISSIONING,ROXTON PRACTICE,30123145,700.00 ,KHU000037332
Department of Health,NHS North East Lincolnshire CCG,31/12/2019,C&M-PMS PCN DES Clinical Director,PRC DELEGATED CO-COMMISSIONING,ROXTON PRACTICE,30123145,"2,085.01 ",KHU000037332
Department of Health,NHS North East Lincolnshire CCG,31/12/2019,C&M-PMS PCN DES PCN support,LOCAL ENHANCED SERVICES,ROXTON PRACTICE,30123145,"4,563.50 ",KHU000037332
Department of Health,NHS North East Lincolnshire CCG,31/12/2019,C&M-PMS PCN DES Participation,PRC DELEGATED CO-COMMISSIONING,ROXTON PRACTICE,30123145,"3,982.55 ",KHU000037332
Department of Health,NHS North East Lincolnshire CCG,31/12/2019,C&M-PMS PCO Other,PRC DELEGATED CO-COMMISSIONING,ROXTON PRACTICE,30123145,"1,444.90 ",KHU000037332
Department of Health,NHS North East Lincolnshire CCG,31/12/2019,C&M-PMS PCO Seniority,PRC DELEGATED CO-COMMISSIONING,ROXTON PRACTICE,30123145,"4,937.85 ",KHU000037332
Department of Health,NHS North East Lincolnshire CCG,31/12/2019,C&M-PMS Prem Actual Rent,PRC DELEGATED CO-COMMISSIONING,ROXTON PRACTICE,30123145,"104,802.93 ",KHU000037332
Department of Health,NHS North East Lincolnshire CCG,31/12/2019,C&M-PMS Prem Clinical Waste,PRC DELEGATED CO-COMMISSIONING,ROXTON PRACTICE,30123145,91.63 ,KHU000037332
Department of Health,NHS North East Lincolnshire CCG,31/12/2019,C&M-PMS Prem Rates,PRC DELEGATED CO-COMMISSIONING,ROXTON PRACTICE,30123145,"5,790.00 ",KHU000037332
Department of Health,NHS North East Lincolnshire CCG,31/12/2019,C&M-PMS Prem Water Rates,PRC DELEGATED CO-COMMISSIONING,ROXTON PRACTICE,30123145,151.81 ,KHU000037332
Department of Health,NHS North East Lincolnshire CCG,31/12/2019,C&M-PMS QOF Aspiration,PRC DELEGATED CO-COMMISSIONING,ROXTON PRACTICE,30123145,"21,007.42 ",KHU000037332
Department of Health,NHS North East Lincolnshire CCG,31/12/2019,C&M-APMS Contract Value,PRC DELEGATED CO-COMMISSIONING,OPEN DOOR,30123147,"31,725.42 ",KHU000037334
Department of Health,NHS North East Lincolnshire CCG,31/12/2019,C&M-APMS List Size Adjustment,PRC DELEGATED CO-COMMISSIONING,OPEN DOOR,30123147,"1,464.65 ",KHU000037334
Department of Health,NHS North East Lincolnshire CCG,31/12/2019,C&M-APMS PCN DES Participation,PRC DELEGATED CO-COMMISSIONING,OPEN DOOR,30123147,212.72 ,KHU000037334
Department of Health,NHS North East Lincolnshire CCG,31/12/2019,C&M-APMS Prem Rates,PRC DELEGATED CO-COMMISSIONING,OPEN DOOR,30123147,"1,215.00 ",KHU000037334
Department of Health,NHS North East Lincolnshire CCG,31/12/2019,C&M-PMS QOF Aspiration,PRC DELEGATED CO-COMMISSIONING,OPEN DOOR,30123147,"1,152.43 ",KHU000037334
Department of Health,NHS North East Lincolnshire CCG,31/12/2019,C&M-PMS Contract Value,PRC DELEGATED CO-COMMISSIONING,DR AP KUMAR,30123149,"30,919.47 ",KHU000037336
Department of Health,NHS North East Lincolnshire CCG,31/12/2019,C&M-PMS DES Learn Dsblty Hlth Chk,PRC DELEGATED CO-COMMISSIONING,DR AP KUMAR,30123149,"1,400.00 ",KHU000037336
Department of Health,NHS North East Lincolnshire CCG,31/12/2019,C&M-PMS List Size Adjustment,PRC DELEGATED CO-COMMISSIONING,DR AP KUMAR,30123149,895.29 ,KHU000037336
Department of Health,NHS North East Lincolnshire CCG,31/12/2019,C&M-PMS PCN DES Participation,PRC DELEGATED CO-COMMISSIONING,DR AP KUMAR,30123149,584.66 ,KHU000037336
Department of Health,NHS North East Lincolnshire CCG,31/12/2019,C&M-PMS PCO Other,PRC DELEGATED CO-COMMISSIONING,DR AP KUMAR,30123149,260.20 ,KHU000037336
Department of Health,NHS North East Lincolnshire CCG,31/12/2019,C&M-PMS PCO Seniority,PRC DELEGATED CO-COMMISSIONING,DR AP KUMAR,30123149,"1,038.21 ",KHU000037336
Department of Health,NHS North East Lincolnshire CCG,31/12/2019,C&M-PMS Prem Actual Rent,PRC DELEGATED CO-COMMISSIONING,DR AP KUMAR,30123149,"16,302.72 ",KHU000037336
Department of Health,NHS North East Lincolnshire CCG,31/12/2019,C&M-PMS QOF Aspiration,PRC DELEGATED CO-COMMISSIONING,DR AP KUMAR,30123149,"3,067.79 ",KHU000037336
Department of Health,NHS North East Lincolnshire CCG,31/12/2019,C&M-PMS Contract Value,PRC DELEGATED CO-COMMISSIONING,CLEE MEDICAL CENTRE,30123151,"114,785.44 ",KHU000037338
Department of Health,NHS North East Lincolnshire CCG,31/12/2019,C&M-PMS DES Extended Hours Access,PRC DELEGATED CO-COMMISSIONING,CLEE MEDICAL CENTRE,30123151,"3,879.23 ",KHU000037338
Department of Health,NHS North East Lincolnshire CCG,31/12/2019,C&M-PMS DES Learn Dsblty Hlth Chk,PRC DELEGATED CO-COMMISSIONING,CLEE MEDICAL CENTRE,30123151,"1,260.00 ",KHU000037338
Department of Health,NHS North East Lincolnshire CCG,31/12/2019,C&M-PMS PCN DES Clinical Director,PRC DELEGATED CO-COMMISSIONING,CLEE MEDICAL CENTRE,30123151,"1,833.50 ",KHU000037338
Department of Health,NHS North East Lincolnshire CCG,31/12/2019,C&M-PMS PCN DES PCN support,LOCAL ENHANCED SERVICES,CLEE MEDICAL CENTRE,30123151,"4,013.00 ",KHU000037338
Department of Health,NHS North East Lincolnshire CCG,31/12/2019,C&M-PMS PCN DES Participation,PRC DELEGATED CO-COMMISSIONING,CLEE MEDICAL CENTRE,30123151,"2,170.48 ",KHU000037338
Department of Health,NHS North East Lincolnshire CCG,31/12/2019,C&M-PMS PCO Other,PRC DELEGATED CO-COMMISSIONING,CLEE MEDICAL CENTRE,30123151,860.90 ,KHU000037338
Department of Health,NHS North East Lincolnshire CCG,31/12/2019,C&M-PMS PCO Seniority,PRC DELEGATED CO-COMMISSIONING,CLEE MEDICAL CENTRE,30123151,169.42 ,KHU000037338
Department of Health,NHS North East Lincolnshire CCG,31/12/2019,C&M-PMS Prem Actual Rent,PRC DELEGATED CO-COMMISSIONING,CLEE MEDICAL CENTRE,30123151,"44,062.50 ",KHU000037338
Department of Health,NHS North East Lincolnshire CCG,31/12/2019,C&M-PMS Prem Rates,PRC DELEGATED CO-COMMISSIONING,CLEE MEDICAL CENTRE,30123151,"3,553.00 ",KHU000037338
Department of Health,NHS North East Lincolnshire CCG,31/12/2019,C&M-PMS QOF Aspiration,PRC DELEGATED CO-COMMISSIONING,CLEE MEDICAL CENTRE,30123151,"14,039.12 ",KHU000037338
Department of Health,NHS North East Lincolnshire CCG,31/12/2019,C&M-PMS Contract Value,PRC DELEGATED CO-COMMISSIONING,CHANTRY HEALTH GROUP,30123153,"51,933.48 ",KHU000037340
Department of Health,NHS North East Lincolnshire CCG,31/12/2019,C&M-PMS List Size Adjustment,PRC DELEGATED CO-COMMISSIONING,CHANTRY HEALTH GROUP,30123153,343.18 ,KHU000037340
Department of Health,NHS North East Lincolnshire CCG,31/12/2019,C&M-PMS PCN DES Participation,PRC DELEGATED CO-COMMISSIONING,CHANTRY HEALTH GROUP,30123153,982.01 ,KHU000037340
Department of Health,NHS North East Lincolnshire CCG,31/12/2019,C&M-PMS PCO Other,PRC DELEGATED CO-COMMISSIONING,CHANTRY HEALTH GROUP,30123153,401.70 ,KHU000037340
Department of Health,NHS North East Lincolnshire CCG,31/12/2019,C&M-PMS PCO Seniority,PRC DELEGATED CO-COMMISSIONING,CHANTRY HEALTH GROUP,30123153,335.57 ,KHU000037340
Department of Health,NHS North East Lincolnshire CCG,31/12/2019,C&M-PMS Prem Actual Rent,PRC DELEGATED CO-COMMISSIONING,CHANTRY HEALTH GROUP,30123153,"31,026.00 ",KHU000037340
Department of Health,NHS North East Lincolnshire CCG,31/12/2019,C&M-PMS Prem Rates,PRC DELEGATED CO-COMMISSIONING,CHANTRY HEALTH GROUP,30123153,"2,207.00 ",KHU000037340
Department of Health,NHS North East Lincolnshire CCG,31/12/2019,C&M-PMS QOF Aspiration,PRC DELEGATED CO-COMMISSIONING,CHANTRY HEALTH GROUP,30123153,"5,326.29 ",KHU000037340
Department of Health,NHS North East Lincolnshire CCG,31/12/2019,C&M-PMS Contract Value,PRC DELEGATED CO-COMMISSIONING,DR OZ QURESHI,30123155,"31,477.09 ",KHU000037342
Department of Health,NHS North East Lincolnshire CCG,31/12/2019,C&M-PMS DES Learn Dsblty Hlth Chk,PRC DELEGATED CO-COMMISSIONING,DR OZ QURESHI,30123155,140.00 ,KHU000037342
Department of Health,NHS North East Lincolnshire CCG,31/12/2019,C&M-PMS PCN DES Participation,PRC DELEGATED CO-COMMISSIONING,DR OZ QURESHI,30123155,595.20 ,KHU000037342
Department of Health,NHS North East Lincolnshire CCG,31/12/2019,C&M-PMS PCO Other,PRC DELEGATED CO-COMMISSIONING,DR OZ QURESHI,30123155,257.90 ,KHU000037342
Department of Health,NHS North East Lincolnshire CCG,31/12/2019,C&M-PMS Prem Actual Rent,PRC DELEGATED CO-COMMISSIONING,DR OZ QURESHI,30123155,"16,575.00 ",KHU000037342
Department of Health,NHS North East Lincolnshire CCG,31/12/2019,C&M-PMS QOF Aspiration,PRC DELEGATED CO-COMMISSIONING,DR OZ QURESHI,30123155,"3,473.36 ",KHU000037342
Department of Health,NHS North East Lincolnshire CCG,31/12/2019,C&M-PMS Contract Value,PRC DELEGATED CO-COMMISSIONING,CCL-SOLUTIONS LTD,30123157,"19,071.63 ",KHU000037344
Department of Health,NHS North East Lincolnshire CCG,31/12/2019,C&M-PMS List Size Adjustment,PRC DELEGATED CO-COMMISSIONING,CCL-SOLUTIONS LTD,30123157,94.53 ,KHU000037344
Department of Health,NHS North East Lincolnshire CCG,31/12/2019,C&M-PMS PCN DES Participation,PRC DELEGATED CO-COMMISSIONING,CCL-SOLUTIONS LTD,30123157,360.63 ,KHU000037344
Department of Health,NHS North East Lincolnshire CCG,31/12/2019,C&M-PMS Prem Actual Rent,PRC DELEGATED CO-COMMISSIONING,CCL-SOLUTIONS LTD,30123157,"33,853.50 ",KHU000037344
Department of Health,NHS North East Lincolnshire CCG,31/12/2019,C&M-PMS Prem Rates,PRC DELEGATED CO-COMMISSIONING,CCL-SOLUTIONS LTD,30123157,"1,279.00 ",KHU000037344
Department of Health,NHS North East Lincolnshire CCG,31/12/2019,C&M-PMS QOF Aspiration,PRC DELEGATED CO-COMMISSIONING,CCL-SOLUTIONS LTD,30123157,"1,794.74 ",KHU000037344
Department of Health,NHS North East Lincolnshire CCG,31/12/2019,C&M-PMS Contract Value,PRC DELEGATED CO-COMMISSIONING,LYNTON PRACTICE LTD,30123161,"34,137.74 ",KHU000037348
Department of Health,NHS North East Lincolnshire CCG,31/12/2019,C&M-PMS PCN DES Participation,PRC DELEGATED CO-COMMISSIONING,LYNTON PRACTICE LTD,30123161,645.51 ,KHU000037348
Department of Health,NHS North East Lincolnshire CCG,31/12/2019,C&M-PMS Prem Actual Rent,PRC DELEGATED CO-COMMISSIONING,LYNTON PRACTICE LTD,30123161,"16,575.00 ",KHU000037348
Department of Health,NHS North East Lincolnshire CCG,31/12/2019,C&M-PMS QOF Aspiration,PRC DELEGATED CO-COMMISSIONING,LYNTON PRACTICE LTD,30123161,"3,724.60 ",KHU000037348
Department of Health,NHS North East Lincolnshire CCG,31/12/2019,C&M-PMS Contract Value,PRC DELEGATED CO-COMMISSIONING,SCARTHO MEDICAL CENTRE,30123163,"105,878.95 ",KHU000037350
Department of Health,NHS North East Lincolnshire CCG,31/12/2019,C&M-PMS DES Extended Hours Access,PRC DELEGATED CO-COMMISSIONING,SCARTHO MEDICAL CENTRE,30123163,"3,705.72 ",KHU000037350
Department of Health,NHS North East Lincolnshire CCG,31/12/2019,C&M-PMS PCN DES Clinical Director,PRC DELEGATED CO-COMMISSIONING,SCARTHO MEDICAL CENTRE,30123163,"1,751.48 ",KHU000037350
Department of Health,NHS North East Lincolnshire CCG,31/12/2019,C&M-PMS PCN DES PCN support,LOCAL ENHANCED SERVICES,SCARTHO MEDICAL CENTRE,30123163,"3,833.50 ",KHU000037350
Department of Health,NHS North East Lincolnshire CCG,31/12/2019,C&M-PMS PCN DES Participation,PRC DELEGATED CO-COMMISSIONING,SCARTHO MEDICAL CENTRE,30123163,"2,002.07 ",KHU000037350
Department of Health,NHS North East Lincolnshire CCG,31/12/2019,C&M-PMS Prem Actual Rent,PRC DELEGATED CO-COMMISSIONING,SCARTHO MEDICAL CENTRE,30123163,"111,000.00 ",KHU000037350
Department of Health,NHS North East Lincolnshire CCG,31/12/2019,C&M-PMS QOF Aspiration,PRC DELEGATED CO-COMMISSIONING,SCARTHO MEDICAL CENTRE,30123163,"12,074.93 ",KHU000037350
Department of Health,NHS North East Lincolnshire CCG,31/12/2019,C&M-PMS Contract Value,PRC DELEGATED CO-COMMISSIONING,GREENLAND SURGERY,30123165,"21,537.17 ",KHU000037352
Department of Health,NHS North East Lincolnshire CCG,31/12/2019,C&M-PMS List Size Adjustment,PRC DELEGATED CO-COMMISSIONING,GREENLAND SURGERY,30123165,35.62 ,KHU000037352
Department of Health,NHS North East Lincolnshire CCG,31/12/2019,C&M-PMS PCN DES Participation,PRC DELEGATED CO-COMMISSIONING,GREENLAND SURGERY,30123165,407.25 ,KHU000037352
Department of Health,NHS North East Lincolnshire CCG,31/12/2019,C&M-PMS Prem Actual Rent,PRC DELEGATED CO-COMMISSIONING,GREENLAND SURGERY,30123165,"18,849.79 ",KHU000037352
Department of Health,NHS North East Lincolnshire CCG,31/12/2019,C&M-PMS QOF Aspiration,PRC DELEGATED CO-COMMISSIONING,GREENLAND SURGERY,30123165,"1,900.03 ",KHU000037352
Department of Health,NHS North East Lincolnshire CCG,31/12/2019,C&M-PMS Contract Value,PRC DELEGATED CO-COMMISSIONING,ROXTON AT WEELSBY VIEW,30123167,"23,346.92 ",KHU000037354
Department of Health,NHS North East Lincolnshire CCG,31/12/2019,C&M-PMS List Size Adjustment,PRC DELEGATED CO-COMMISSIONING,ROXTON AT WEELSBY VIEW,30123167,"1,200.45 ",KHU000037354
Department of Health,NHS North East Lincolnshire CCG,31/12/2019,C&M-PMS PCN DES Participation,PRC DELEGATED CO-COMMISSIONING,ROXTON AT WEELSBY VIEW,30123167,441.47 ,KHU000037354
Department of Health,NHS North East Lincolnshire CCG,31/12/2019,C&M-PMS Prem Rates,PRC DELEGATED CO-COMMISSIONING,ROXTON AT WEELSBY VIEW,30123167,"1,105.00 ",KHU000037354
Department of Health,NHS North East Lincolnshire CCG,31/12/2019,C&M-PMS QOF Aspiration,PRC DELEGATED CO-COMMISSIONING,ROXTON AT WEELSBY VIEW,30123167,"2,197.54 ",KHU000037354
Department of Health,NHS North East Lincolnshire CCG,31/12/2019,C&M-PMS Contract Value,PRC DELEGATED CO-COMMISSIONING,WOODFORD MEDICAL CENTRE,30123169,"76,021.40 ",KHU000037356
Department of Health,NHS North East Lincolnshire CCG,31/12/2019,C&M-PMS DES Learn Dsblty Hlth Chk,PRC DELEGATED CO-COMMISSIONING,WOODFORD MEDICAL CENTRE,30123169,140.00 ,KHU000037356
Department of Health,NHS North East Lincolnshire CCG,31/12/2019,C&M-PMS PCN DES Participation,PRC DELEGATED CO-COMMISSIONING,WOODFORD MEDICAL CENTRE,30123169,"1,437.49 ",KHU000037356
Department of Health,NHS North East Lincolnshire CCG,31/12/2019,C&M-PMS PCO Seniority,PRC DELEGATED CO-COMMISSIONING,WOODFORD MEDICAL CENTRE,30123169,405.96 ,KHU000037356
Department of Health,NHS North East Lincolnshire CCG,31/12/2019,C&M-PMS Prem Actual Rent,PRC DELEGATED CO-COMMISSIONING,WOODFORD MEDICAL CENTRE,30123169,"37,256.40 ",KHU000037356
Department of Health,NHS North East Lincolnshire CCG,31/12/2019,C&M-PMS QOF Aspiration,PRC DELEGATED CO-COMMISSIONING,WOODFORD MEDICAL CENTRE,30123169,"7,547.72 ",KHU000037356
Department of Health,NHS North East Lincolnshire CCG,31/12/2019,C&M-PMS Contract Value,PRC DELEGATED CO-COMMISSIONING,BIRKWOOD MEDICAL CENTRE,30123171,"67,977.45 ",KHU000037358
Department of Health,NHS North East Lincolnshire CCG,31/12/2019,C&M-PMS PCN DES Participation,PRC DELEGATED CO-COMMISSIONING,BIRKWOOD MEDICAL CENTRE,30123171,"1,285.39 ",KHU000037358
Department of Health,NHS North East Lincolnshire CCG,31/12/2019,C&M-PMS PCO Other,PRC DELEGATED CO-COMMISSIONING,BIRKWOOD MEDICAL CENTRE,30123171,"10,982.00 ",KHU000037358
Department of Health,NHS North East Lincolnshire CCG,31/12/2019,C&M-PMS PCO Seniority,PRC DELEGATED CO-COMMISSIONING,BIRKWOOD MEDICAL CENTRE,30123171,"1,858.95 ",KHU000037358
Department of Health,NHS North East Lincolnshire CCG,31/12/2019,C&M-PMS Prem Actual Rent,PRC DELEGATED CO-COMMISSIONING,BIRKWOOD MEDICAL CENTRE,30123171,"95,490.00 ",KHU000037358
Department of Health,NHS North East Lincolnshire CCG,31/12/2019,C&M-PMS QOF Aspiration,PRC DELEGATED CO-COMMISSIONING,BIRKWOOD MEDICAL CENTRE,30123171,"6,956.96 ",KHU000037358
Department of Health,NHS North East Lincolnshire CCG,31/12/2019,C&M-PMS Contract Value,PRC DELEGATED CO-COMMISSIONING,PELHAM MEDICAL CENTRE,30123172,"76,689.92 ",KHU000037360
Department of Health,NHS North East Lincolnshire CCG,31/12/2019,C&M-PMS DES Learn Dsblty Hlth Chk,PRC DELEGATED CO-COMMISSIONING,PELHAM MEDICAL CENTRE,30123172,560.00 ,KHU000037360
Department of Health,NHS North East Lincolnshire CCG,31/12/2019,C&M-PMS List Size Adjustment,PRC DELEGATED CO-COMMISSIONING,PELHAM MEDICAL CENTRE,30123172,175.32 ,KHU000037360
Department of Health,NHS North East Lincolnshire CCG,31/12/2019,C&M-PMS PCN DES Participation,PRC DELEGATED CO-COMMISSIONING,PELHAM MEDICAL CENTRE,30123172,"1,450.13 ",KHU000037360
Department of Health,NHS North East Lincolnshire CCG,31/12/2019,C&M-PMS PCO Doctors Ret Scheme,PRC DELEGATED CO-COMMISSIONING,PELHAM MEDICAL CENTRE,30123172,"6,666.48 ",KHU000037360
Department of Health,NHS North East Lincolnshire CCG,31/12/2019,C&M-PMS PCO Other,PRC DELEGATED CO-COMMISSIONING,PELHAM MEDICAL CENTRE,30123172,596.20 ,KHU000037360
Department of Health,NHS North East Lincolnshire CCG,31/12/2019,C&M-PMS PCO Seniority,PRC DELEGATED CO-COMMISSIONING,PELHAM MEDICAL CENTRE,30123172,"2,132.76 ",KHU000037360
Department of Health,NHS North East Lincolnshire CCG,31/12/2019,C&M-PMS Prem Actual Rent,PRC DELEGATED CO-COMMISSIONING,PELHAM MEDICAL CENTRE,30123172,"31,770.00 ",KHU000037360
Department of Health,NHS North East Lincolnshire CCG,31/12/2019,C&M-PMS Prem Rates,PRC DELEGATED CO-COMMISSIONING,PELHAM MEDICAL CENTRE,30123172,"2,082.00 ",KHU000037360
Department of Health,NHS North East Lincolnshire CCG,31/12/2019,C&M-PMS QOF Aspiration,PRC DELEGATED CO-COMMISSIONING,PELHAM MEDICAL CENTRE,30123172,"7,759.98 ",KHU000037360
Department of Health,NHS North East Lincolnshire CCG,31/12/2019,C&M-PMS Contract Value,PRC DELEGATED CO-COMMISSIONING,FIELDHOUSE MEDICAL GROUP,30125835,"97,970.59 ",KHU000037314
Department of Health,NHS North East Lincolnshire CCG,31/12/2019,C&M-PMS List Size Adjustment,PRC DELEGATED CO-COMMISSIONING,FIELDHOUSE MEDICAL GROUP,30125835,"1,432.65 ",KHU000037314
Department of Health,NHS North East Lincolnshire CCG,31/12/2019,C&M-PMS PCN DES Participation,PRC DELEGATED CO-COMMISSIONING,FIELDHOUSE MEDICAL GROUP,30125835,"1,852.53 ",KHU000037314
Department of Health,NHS North East Lincolnshire CCG,31/12/2019,C&M-PMS PCO Seniority,PRC DELEGATED CO-COMMISSIONING,FIELDHOUSE MEDICAL GROUP,30125835,528.45 ,KHU000037314
Department of Health,NHS North East Lincolnshire CCG,31/12/2019,C&M-PMS Prem Actual Rent,PRC DELEGATED CO-COMMISSIONING,FIELDHOUSE MEDICAL GROUP,30125835,"189,281.70 ",KHU000037314
Department of Health,NHS North East Lincolnshire CCG,31/12/2019,C&M-PMS QOF Aspiration,PRC DELEGATED CO-COMMISSIONING,FIELDHOUSE MEDICAL GROUP,30125835,"10,005.92 ",KHU000037314
Department of Health,NHS North East Lincolnshire CCG,31/12/2019,Clinical&Medical-Clinical Other,PATIENT TRANSPORT,THAMES AMBULANCE SERVICE LTD,30136258,"87,553.72 ",21657
Department of Health,NHS North East Lincolnshire CCG,31/12/2019,Clinical&Medical-Clinical Other,PATIENT TRANSPORT,THAMES AMBULANCE SERVICE LTD,30136261,"28,302.56 ",21659
Department of Health,NHS North East Lincolnshire CCG,31/12/2019,Clinical&Medical-Independent Sector,OUT OF HOURS,CORE CARE LINKS,30136264,"120,270.10 ",1116
Department of Health,NHS North East Lincolnshire CCG,31/12/2019,C&M-PMS Prem Actual Rent,PRC DELEGATED CO-COMMISSIONING,NAVIGO,30136268,"2,500.00 ",SALINV5376
Department of Health,NHS North East Lincolnshire CCG,31/12/2019,Clinical&Medical-Clinical Other,PRC DELEGATED CO-COMMISSIONING,NAVIGO,30136268,"3,750.00 ",SALINV5376
Department of Health,NHS North East Lincolnshire CCG,31/12/2019,Clinical&Medical-Not For Profit,MENTAL HEALTH CONTRACTS,NAVIGO,30136268,"2,078,072.00 ",SALINV5376
Department of Health,NHS North East Lincolnshire CCG,31/12/2019,Soc Care-Other Soc Care,ASC SLA/CONTRACTS,NAVIGO,30136268,"257,020.00 ",SALINV5376
Department of Health,NHS North East Lincolnshire CCG,31/12/2019,Clinical&Medical-Commercial Sector,PLANNED CARE,ST HUGHS HOSPITAL,30136273,"95,158.68 ",OCTXS2019
Department of Health,NHS North East Lincolnshire CCG,31/12/2019,Clinical&Medical-Commercial Sector,ACUTE COMMISSIONING,SPIRE HEALTHCARE LTD,30136282,"26,652.00 ",03HHULPF192009
Department of Health,NHS North East Lincolnshire CCG,31/12/2019,Clinical&Medical-Clinical Other,PRC DELEGATED CO-COMMISSIONING,CARE PLUS GROUP LTD,30136293,"18,333.11 ",15142
Department of Health,NHS North East Lincolnshire CCG,31/12/2019,Clinical&Medical-Independent Sector,COMMUNITY SERVICES,CARE PLUS GROUP LTD,30136293,"29,166.67 ",15142
Department of Health,NHS North East Lincolnshire CCG,31/12/2019,Clinical&Medical-Not For Profit,COMMUNITY SERVICES,CARE PLUS GROUP LTD,30136293,"1,363,603.30 ",15142
Department of Health,NHS North East Lincolnshire CCG,31/12/2019,Soc Care-Other Soc Care,ASC SLA/CONTRACTS,CARE PLUS GROUP LTD,30136293,"304,534.92 ",15142
Department of Health,NHS North East Lincolnshire CCG,31/12/2019,LPF Management Fees,PRIMARY CARE IT,KIER BUSINESS SERVICES LTD,30136296,"37,556.40 ",10199719
Department of Health,NHS North East Lincolnshire CCG,31/12/2019,Utilisation-Other Provs/Liabs<1Yr,BALANCE SHEET,KIER BUSINESS SERVICES LTD,30136296,"16,668.00 ",10199719
Department of Health,NHS North East Lincolnshire CCG,31/12/2019,Hcare Srv Rec NHS Trust-Contract Baseline,AMBULANCE SERVICES,EAST MIDLANDS AMBULANCE SERVICE NHS TRUST,30136308,"522,735.00 ",4000000984
Department of Health,NHS North East Lincolnshire CCG,31/12/2019,C&M-PMS GP Statutory Levy,PRC DELEGATED CO-COMMISSIONING,PELHAM MEDICAL CENTRE,30150051,"(1,291.92)",KHU000037359
Department of Health,NHS North East Lincolnshire CCG,31/12/2019,C&M-PMS Out of Hours Opt Outs,PRC DELEGATED CO-COMMISSIONING,PELHAM MEDICAL CENTRE,30150051,"(3,557.48)",KHU000037359
Department of Health,NHS North East Lincolnshire CCG,31/12/2019,C&M-PMS Voluntary Levy,PRC DELEGATED CO-COMMISSIONING,PELHAM MEDICAL CENTRE,30150051,(191.32),KHU000037359
Department of Health,NHS North East Lincolnshire CCG,31/12/2019,ME - PMS GP Prior Year ERs,PRC DELEGATED CO-COMMISSIONING,PELHAM MEDICAL CENTRE,30150051,"(9,431.84)",KHU000037359
Department of Health,NHS North East Lincolnshire CCG,31/12/2019,ME - PMS TPS Added Years Adj EEs,PRC DELEGATED CO-COMMISSIONING,PELHAM MEDICAL CENTRE,30150051,(199.27),KHU000037359
Department of Health,NHS North East Lincolnshire CCG,31/12/2019,ME-PMS GP Pension AVCs,PRC DELEGATED CO-COMMISSIONING,PELHAM MEDICAL CENTRE,30150051,"(2,369.99)",KHU000037359
Department of Health,NHS North East Lincolnshire CCG,31/12/2019,ME-PMS GP Pension EEs Adjs - PMS,PRC DELEGATED CO-COMMISSIONING,PELHAM MEDICAL CENTRE,30150051,"(5,465.83)",KHU000037359
Department of Health,NHS North East Lincolnshire CCG,31/12/2019,ME-PMS GP Pension EEs-PMS,PRC DELEGATED CO-COMMISSIONING,PELHAM MEDICAL CENTRE,30150051,"(5,550.46)",KHU000037359
Department of Health,NHS North East Lincolnshire CCG,31/12/2019,ME-PMS GP Pension ERs Adjs - PMS,PRC DELEGATED CO-COMMISSIONING,PELHAM MEDICAL CENTRE,30150051,"(11,973.02)",KHU000037359
Department of Health,NHS North East Lincolnshire CCG,31/12/2019,ME-PMS GP Prior Year AVCs,PRC DELEGATED CO-COMMISSIONING,PELHAM MEDICAL CENTRE,30150051,"(3,554.98)",KHU000037359
Department of Health,NHS North East Lincolnshire CCG,31/12/2019,ME-PMS GP Prior Year EEs,PRC DELEGATED CO-COMMISSIONING,PELHAM MEDICAL CENTRE,30150051,"(8,198.75)",KHU000037359
Department of Health,NHS North East Lincolnshire CCG,31/12/2019,Clinical&Medical-Commercial Sector,PLANNED CARE,ST HUGHS HOSPITAL,30160197,"598,804.94 ",NELCGDEC2019
Department of Health,NHS North East Lincolnshire CCG,31/12/2019,External Data Contracts,PRIMARY CARE IT,CARE PLUS GROUP LTD,30185327,"72,000.00 ",14835
Department of Health,NHS North East Lincolnshire CCG,31/12/2019,Clinical&Medical-Commercial Sector,MENTAL HEALTH SERVICES - OLDER PEOPLE,NAVIGO,30185360,"44,160.00 ",SALINV5371
Department of Health,NHS North East Lincolnshire CCG,31/12/2019,Clinical&Medical-Othe Public Sector,CHILD AND ADOLESCENT MENTAL HEALTH,NORTH EAST LINCOLNSHIRE COUNCIL,30185446,"248,187.00 ",S1557329
Department of Health,NHS North East Lincolnshire CCG,31/12/2019,Clinical&Medical-Othe Public Sector,COMMISSIONING - NON ACUTE,NORTH EAST LINCOLNSHIRE COUNCIL,30185446,"50,180.00 ",S1557329
Department of Health,NHS North East Lincolnshire CCG,31/12/2019,C&M-GP PRACTICE REVENUE - PCTF,GP FORWARD VIEW,ROXTON PRACTICE,30200422,"26,440.53 ",3822
Department of Health,NHS North East Lincolnshire CCG,31/12/2019,Clinical&Medical-Commercial Sector,PLANNED CARE,360 CARE LTD,30226209,"34,650.00 ",36148
Department of Health,NHS North East Lincolnshire CCG,31/12/2019,Clinical&Medical-Commercial Sector,PLANNED CARE,VIRGIN CARE EAST RIDING LLP,30252149,"100,000.00 ",301160282
Department of Health,NHS North East Lincolnshire CCG,31/12/2019,Clinical&Medical-Commercial Sector,PLANNED CARE,VIRGIN CARE EAST RIDING LLP,30278862,"70,717.07 ",301158283
Department of Health,NHS North East Lincolnshire CCG,31/12/2019,Clinical&Medical-Commercial Sector,PLANNED CARE,VIRGIN CARE EAST RIDING LLP,30278942,"130,000.00 ",301616002
Department of Health,NHS North East Lincolnshire CCG,31/12/2019,Clinical&Medical-Othe Public Sector,CHILD AND ADOLESCENT MENTAL HEALTH,NORTH EAST LINCOLNSHIRE COUNCIL,30278959,"40,000.00 ",S1557274
Department of Health,NHS North East Lincolnshire CCG,31/12/2019,Clinical&Medical-Commercial Sector,PLANNED CARE,VIRGIN CARE EAST RIDING LLP,30279071,"(130,000.00)",301616004
Department of Health,NHS North East Lincolnshire CCG,31/12/2019,C&M-PMS LES LTC Case Management,LOCAL ENHANCED SERVICES,BEACON MEDICAL,30285047,"25,871.32 ",DEC19EPC1
Department of Health,NHS North East Lincolnshire CCG,31/12/2019,C&M-PMS LES LTC Case Management,LOCAL ENHANCED SERVICES,HUMBERVIEW SURGERY,30285052,"32,756.44 ",DEC19EPC2
Department of Health,NHS North East Lincolnshire CCG,31/12/2019,C&M-PMS LES LTC Case Management,LOCAL ENHANCED SERVICES,ROXTON PRACTICE,30285054,"30,322.09 ",DEC19EPC3
Department of Health,NHS North East Lincolnshire CCG,31/12/2019,C&M-PMS LES LTC Case Management,LOCAL ENHANCED SERVICES,SCARTHO MEDICAL CENTRE,30285055,"25,480.00 ",DEC19EPC4
Department of Health,NHS North East Lincolnshire CCG,31/12/2019,C&M-PMS LES LTC Case Management,LOCAL ENHANCED SERVICES,CLEE MEDICAL CENTRE,30285058,"26,671.41 ",DEC19EPC5
Department of Health,NHS North East Lincolnshire CCG,31/12/2019,Clinical&Medical-Independent Sector,ACUTE COMMISSIONING,NEW MEDICAL SYSTEMS LTD,30305899,"139,141.90 ",00002150
Department of Health,NHS North East Lincolnshire CCG,31/12/2019,C&M-GP PRACTICE REVENUE - PCTF,GP FORWARD VIEW,PELHAM MEDICAL CENTRE,30305953,"27,051.28 ",000889
Department of Health,NHS North East Lincolnshire CCG,31/12/2019,Hcare Srv Rec Fdtn Trust-Non Contract,LEARNING DIFFICULTIES,HUMBER TEACHING NHS FOUNDATION TRUST,30330222,"26,610.30 ",59886480
Department of Health,NHS North East Lincolnshire CCG,31/12/2019,C&M-PMS Prem Actual Rent,PRC DELEGATED CO-COMMISSIONING,CARE PLUS GROUP LTD,30330257,"195,963.72 ",14979
Department of Health,NHS North East Lincolnshire CCG,31/12/2019,Miscellaneous Expenditure (L9),PROGRAMME PROJECTS,HEALTHY LIVES TOGETHER LLP,30330434,"32,085.00 ",3
Department of Health,NHS North East Lincolnshire CCG,31/12/2019,Hcare Srv Rec Fdtn Trust-Over/ Under Performance,ACUTE COMMISSIONING,SHEFFIELD TEACHING HOSPITALS NHS FOUNDATION TRUST,30330447,"(44,169.00)",5000046209
Department of Health,NHS North East Lincolnshire CCG,31/12/2019,C&M-PMS Cost of Drugs -Dispensing,LOCAL ENHANCED SERVICES,ROXTON PRACTICE,30373756,"(61,937.80)",KHU000037529
Department of Health,NHS North East Lincolnshire CCG,31/12/2019,C&M-PMS Prsc Chrgs Cll&Rmttd by GPs,PRC DELEGATED CO-COMMISSIONING,ROXTON PRACTICE,30373756,"(2,412.00)",KHU000037529
Department of Health,NHS North East Lincolnshire CCG,31/12/2019,C&M-PMS Cost of Drugs -Dispensing,LOCAL ENHANCED SERVICES,ROXTON PRACTICE,30373757,"141,290.13 ",KHU000037530
Department of Health,NHS North East Lincolnshire CCG,31/12/2019,C&M-PMS Prof fees Dispensing,PRC DELEGATED CO-COMMISSIONING,ROXTON PRACTICE,30373757,"22,877.98 ",KHU000037530
Department of Health,NHS North East Lincolnshire CCG,31/12/2019,C&M-PMS Prsc Chrgs Cll&Rmttd by GPs,LOCAL ENHANCED SERVICES,ROXTON PRACTICE,30373757,"2,412.00 ",KHU000037530
Department of Health,NHS North East Lincolnshire CCG,31/12/2019,Hcare Srv Rec NHS Trust-Over/ Under Performance,ACUTE COMMISSIONING,HULL UNIVERSITY TEACHING HOSPITAL NHS TRUST,30437586,"(56,412.00)",C0003433
